Workbook

Sheet Draft decision
A1: Actual and estimated inflation
B2: Actual | L2: Estimated
B3: 2013-14 | C3: 2014-15 | D3: 2015-16 | E3: 2016-17 | F3: 2017-18 | G3: 2018-19 | H3: 2019-20 | I3: 2020-21 | J3: 2021-22 | K3: 2022-23 | L3: 2023-24 | M3: 2024-25
A4: ABS CPI index - June | C4: 107.5 | D4: 108.6 | E4: 110.7 | F4: 113 | G4: 114.8 | H4: 114.4 | I4: 118.8 | J4: 126.1 | K4: 133.7 | L4: 138.8 | M4: 142.6864
A5: Inflation rate (per cent) | D5: =+D4/C4-1 -> 0.01023255814 | E5: 0.01933701657 | F5: 0.02077687444 | G5: 0.01592920354 | H5: -0.003484320557 | I5: 0.03846153846 | J5: 0.06144781145 | K5: 0.06026962728 | L5: =+L4/K4-1 -> 0.03814510097 | M5: 0.028
A6: Reconstructed cumulative index (2024-25=1) | C6: =D6/(1+D5) -> 0.7534004642 | D6: 0.7611096783 | E6: 0.7758272688 | F6: 0.7919465345 | G6: 0.804561612 | H6: 0.8017582615 | I6: 0.8325951177 | J6: 0.8837562655 | K6: 0.9370199262 | L6: 0.9727626459 | M6: 1
A10: 7.5.1 - The carryover amounts that arise from applying the EBSS during the current regulatory control period
A12: Base year used to forecast opex for the current period (drop down menu) | B12: 2018-19
A13: Non-recurrent efficiency adjustment made to 2018-19 opex, $m, real June 2020 | B13: 0
A14: 7.5.1.1 - Opex allowance applicable to EBSS (EBSS target)
B15: $m, real June 2015 | D15: $m, real June 2020 | J15: $m, real June 2025
B16: Previous period | D16: Current regulatory control period | J16: Previous period | L16: Current regulatory control period
B17: =dms_PRCP_BaseYear -> 2018-19 | C17: 2019-20 | D17: 2020-21 | E17: 2021-22 | F17: 2022-23 | G17: 2023-24 | H17: 2024-25 | J17: =dms_PRCP_BaseYear -> 2018-19 | K17: 2019-20 | L17: 2020-21 | M17: 2021-22 | N17: 2022-23 | O17: 2023-24 | P17: 2024-25
A18: Total opex allowance | B18: 358.0603398 | C18: 364.7958039 | D18: 376.829566 | E18: 371.5748847 | F18: 367.0042339 | G18: 362.0557723 | H18: 357.1683853 | J18: =+B18/$C$6 -> 475.2589848 | K18: =+C18/$C$6 -> 484.1990697 | L18: =+D18/$H$6 -> 470.0039702 | M18: =+E18/$H$6 -> 463.450023 | N18: =+F18/$H$6 -> 457.7492389 | O18: =+G18/$H$6 -> 451.5772268 | P18: =+H18/$H$6 -> 445.4813906
A19: Approved excludable costs - allowance
A20: Debt raising costs | B20: -5.221779993 | C20: -5.286729734 | D20: -5.619169993 | E20: -5.664009739 | F20: -5.705434306 | G20: -5.750060109 | H20: -5.782518982 | J20: =+B20/$C$6 -> -6.930948733 | K20: -7.017157522 | L20: =D20/$H$6 -> -7.008558893 | M20: =E20/$H$6 -> -7.064485657 | N20: -7.116152811 | O20: -7.171812734 | P20: -7.212297347
J21: 0 | K21: 0 | L21: =D21/$H$6 -> 0 | M21: 0 | N21: 0 | O21: 0 | P21: 0
J22: =+B22/$C$6 -> 0 | K22: 0 | L22: 0 | M22: 0 | N22: 0 | O22: 0 | P22: 0
A23: Approved opex, pass throughs and contingent projects | J23: =+B23/$C$6 -> 0 | K23: 0 | L23: 0 | M23: 0 | N23: 0 | O23: 0 | P23: 0
A24: Other adjustments or exclusions required by the EBSS | J24: 0 | K24: 0 | L24: 0 | M24: 0 | N24: 0 | O24: 0 | P24: 0
A25: Forecast opex for EBSS purposes | B25: =SUM(B18:B24) -> 352.8385598 | C25: =SUM(C18:C24) -> 359.5090742 | D25: =SUM(D18:D24) -> 371.210396 | E25: 365.9108749 | F25: 361.2987996 | G25: 356.3057121 | H25: =SUM(H18:H24) -> 351.3858663 | J25: =+SUM(J18:J24) -> 468.328036 | K25: 477.1819122 | L25: 462.9954113 | M25: 456.3855373 | N25: 450.633086 | O25: 444.405414 | P25: 438.2690933
A27: 7.5.1.2 - Actual and estimated opex applicable to EBSS
B28: $m, Actual | J28: $m, real June 2025
B29: Previous period | D29: Current regulatory control period | J29: Previous period | L29: Current regulatory control period
B30: =dms_PRCP_BaseYear -> 2018-19 | C30: 2019-20 | D30: 2020-21 | E30: 2021-22 | F30: 2022-23 | G30: 2023-24 | H30: 2024-25 | J30: =dms_PRCP_BaseYear -> 2018-19 | K30: 2019-20 | L30: 2020-21 | M30: 2021-22 | N30: 2022-23 | O30: 2023-24 | P30: 2024-25
A31: Total opex | B31: 391.685032 | C31: 402.909001 | D31: 370.172715 | E31: 380.353683 | F31: 446.406003 | G31: 473.8576028 | J31: =+B31/LOOKUP(dms_PRCP_BaseYear,$C$3:$M$3,$C$6:$M$6)*(1+LOOKUP(dms_PRCP_BaseYear,$C$3:$M$3,$C$5:$M$5))^0.5 -> 490.6924667 | K31: =+C31/H$6*(1+H$5)^0.5 -> 501.6555186 | L31: =+D31/I$6*(1+I$5)^0.5 -> 453.0704654 | M31: =+E31/J$6*(1+J$5)^0.5 -> 443.408938 | N31: =+F31/K$6*(1+K$5)^0.5 -> 490.5568675 | O31: =+G31/L$6*(1+L$5)^0.5 -> 496.3293952
A32: Approved excludable costs
A33: =IF(ISBLANK(A20),"",A20) -> Debt raising costs | B33: 0 | C33: 0 | D33: -2.147767 | E33: -2.221506 | F33: -6.982454 | G33: -5.750060109 | J33: =+B33/LOOKUP(dms_PRCP_BaseYear,$C$3:$M$3,$C$6:$M$6)*(1+LOOKUP(dms_PRCP_BaseYear,$C$3:$M$3,$C$5:$M$5))^0.5 -> 0 | K33: =C33/H$6*(1+H$5)^0.5 -> 0 | L33: =D33/I$6*(1+I$5)^0.5 -> -2.628745326 | M33: =E33/J$6*(1+J$5)^0.5 -> -2.589788558 | N33: -7.673039204 | O33: -6.022745736
A34: DMIA | B34: -0.44147708 | C34: -2.661961 | D34: -1.57459202 | E34: -0.37887797 | F34: -0.33393355 | G34: -1.021263146 | J34: =+B34/LOOKUP(dms_PRCP_BaseYear,$C$3:$M$3,$C$6:$M$6)*(1+LOOKUP(dms_PRCP_BaseYear,$C$3:$M$3,$C$5:$M$5))^0.5 -> -0.5530706044 | K34: -3.314364838 | L34: =D34/I$6*(1+I$5)^0.5 -> -1.92721157 | M34: =E34/J$6*(1+J$5)^0.5 -> -0.4416885804 | N34: -0.3669605586 | O34: -1.069694601
A35: =IF(ISBLANK(A22),"",A22) ->  | J35: 0 | K35: 0 | L35: =D35/I$6*(1+I$5)^0.5 -> 0 | M35: 0 | N35: 0 | O35: 0 | R35: Ergon Energy to nominate base year used to forecast opex (drop down menu)
A36: Capitalised opex that has been excluded from the regulatory asset base | J36: 0 | K36: 0 | L36: 0 | M36: 0 | N36: =F36/K$6*(1+K$5)^0.5 -> 0 | O36: 0
A37: Movements in provisions related to opex | B37: -3.72362 | C37: -6.98456 | D37: -1.304446 | E37: -4.336654 | F37: -6.858735 | J37: -4.664850923 | K37: -8.696363348 | L37: -1.596568122 | M37: -5.055587024 | N37: -7.537084031 | O37: 0
A38: Other adjustments or exclusions required by the EBSS | J38: 0 | K38: 0 | L38: 0 | M38: 0 | N38: 0 | O38: 0
A39: Actual opex for EBSS purposes | B39: =SUM(B31:B38) -> 387.5199349 | C39: =SUM(C31:C38) -> 393.26248 | D39: 365.14591 | E39: 373.416645 | F39: 432.2308804 | G39: =SUM(G31:G38) -> 467.0862795 | J39: =J31+SUM(J33:J38) -> 485.4745452 | K39: =K31+SUM(K33:K38) -> 489.6447904 | L39: =L31+SUM(L33:L38) -> 446.9179404 | M39: 435.3218738 | N39: 474.9797837 | O39: 489.2369548 | P39: =P25-(LOOKUP($Q$39,L17:O17,L25:O25)-LOOKUP($Q$39,L30:O30,L39:O39))+Q40 -> 483.1006341 | Q39: 2023-24
Q40: 0 | R40: Base year non-recurrent efficiency gain $m, real June 2025
J41: Incremental gain $m, real June 2025
L42: =(L25-L39)-((K25-K39)-(J25-J39))-B13/$H$6 -> 11.39383994 | M42: =(M25-M39)-(L25-L39) -> 4.986192654 | N42: =(N25-N39)-(M25-M39) -> -45.41036118 | O42: =(O25-O39)-(N25-N39) -> -20.48484314 | P42: =(P25-P39)-(O25-O39) -> 0
J44: Carryover
L45: Current regulatory control period | Q45: Forthcoming regulatory control period
L46: $m, real June 2025
L47: 2020-21 | M47: 2021-22 | N47: 2022-23 | O47: 2023-24 | P47: 2024-25 | Q47: 2025-26 | R47: 2026-27 | S47: 2027-28 | T47: 2028-29 | U47: 2029-30 | V47: Total
J48: 2020-21 | M48: =$L$42 -> 11.39383994 | N48: =$L$42 -> 11.39383994 | O48: =$L$42 -> 11.39383994 | P48: =$L$42 -> 11.39383994 | Q48: =$L$42 -> 11.39383994
J49: 2021-22 | N49: =$M$42 -> 4.986192654 | O49: =$M$42 -> 4.986192654 | P49: =$M$42 -> 4.986192654 | Q49: =$M$42 -> 4.986192654 | R49: =$M$42 -> 4.986192654
J50: 2022-23 | O50: =$N$42 -> -45.41036118 | P50: =$N$42 -> -45.41036118 | Q50: =$N$42 -> -45.41036118 | R50: =$N$42 -> -45.41036118 | S50: =$N$42 -> -45.41036118
J51: 2023-24 | P51: =$O$42 -> -20.48484314 | Q51: =$O$42 -> -20.48484314 | R51: =$O$42 -> -20.48484314 | S51: =$O$42 -> -20.48484314 | T51: =$O$42 -> -20.48484314
J52: 2024-25 | Q52: =+$P$42 -> 0 | R52: =+$P$42 -> 0 | S52: =+$P$42 -> 0 | T52: =+$P$42 -> 0 | U52: =+$P$42 -> 0
J53: Total Carryover Amount ($m, June 2025) | Q53: =+SUM(Q48:Q52) -> -49.51517173 | R53: =+SUM(R49:R52) -> -60.90901167 | S53: =+SUM(S50:S52) -> -65.89520432 | T53: =+SUM(T51:T52) -> -20.48484314 | U53: =+SUM(U52) -> 0 | V53: =+SUM(Q53:U53) -> -196.8042309
J55: PTRM inputs ($m, June 2025) | Q55: =Q53 -> -49.51517173 | R55: =R53 -> -60.90901167 | S55: =S53 -> -65.89520432 | T55: =T53 -> -20.48484314 | U55: =U53 -> 0 | V55: =+SUM(Q55:U55) -> -196.8042309
